[Event "CZE-ch Amateurs 2022"]
[Site "Luhacovice"]
[Date "2022.03.16"]
[Round "6.4"]
[White "Kratochvil, Josef"]
[Black "Cupek, Martin"]
[Result "1-0"]
[ECO "C41"]
[WhiteElo "2200"]
[BlackElo "2108"]
[Annotator "ChessBase"]
[PlyCount "91"]
[EventDate "2022.03.12"]
[EventType "swiss"]
[EventCountry "CZE"]
[SourceTitle "playchess.com"]
[Source "ChessBase"]
[SourceQuality "1"]
[TimeControl "5400+30"]

1. e4 {[%emt 0:01:44]} d6 {[%emt 0:00:09]} 2. d4 {[%emt 0:00:06]} Nd7 {[%emt 0:00:24]} 3. Nc3 {[%emt 0:00:46]} e5 {[%emt 0:00:32]} 4. Nf3 {[%emt 0:00:42]} g6 {[%emt 0:00:48]} 5. Bc4 {[%emt 0:02:41]} c6 {[%emt 0:00:13]} 6. a4 {[%emt 0:02:24]} f6 {[%emt 0:03:17]} 7. O-O {[%emt 0:06:26]} a5 {[%emt 0:02:42]} 8. Be3 {[%emt 0:04:43]} Nh6 {[%emt 0:00:08]} 9. h3 {[%emt 0:05:23]} Qe7 {[%emt 0:01:40]} 10. Nh2 {[%emt 0:05:11]} Nf7 {[%emt 0:18:13]} 11. f4 {[%emt 0:05:22]} exd4 {[%emt 0:06:34]} 12. Qxd4 {[%emt 0:03:21]} Nc5 {[%emt 0:01:47]} 13. e5 {[%emt 0:09:30]} d5 {[%emt 0:18:14]} 14. Bxd5 {[%emt 0:08:47]} f5 {[%emt 0:16:55]} 15. Rad1 {[%emt 0:07:25]} Be6 {[%emt 0:00:30]} 16. Bxe6 {[%emt 0:01:51]} Nxe6 {[%emt 0:00:05]} 17. Qc4 {[%emt 0:00:22]} Bh6 {[%emt 0:02:00]} 18. Nf3 {[%emt 0:02:14]} O-O {[%emt 0:05:12]} 19. Nd4 {[%emt 0:00:57]} Nxd4 {[%emt 0:03:05]} 20. Rxd4 {[%emt 0:00:35]} Kh8 {[%emt 0:01:33]} 21. Re1 {[%emt 0:06:00]} Rfe8 {[%emt 0:03:16]} 22. Rd3 {[%emt 0:03:56]} Kg8 {[%emt 0:06:06]} 23. Bc5 {[%emt 0:05:39]} Qe6 {[%emt 0:00:11]} 24. Qxe6 {[%emt 0:00:17]} Rxe6 {[%emt 0:00:02]} 25. g3 {[%emt 0:01:51]} Bf8 {[%emt 0:03:53]} 26. Bxf8 {[%emt 0:01:02]} Kxf8 {[%emt 0:00:02]} 27. Red1 {[%emt 0:00:12]} Ke8 {[%emt 0:00:44]} 28. Ne2 {[%emt 0:03:51]} Rd8 {[%emt 0:01:15]} 29. Nd4 {[%emt 0:00:53]} Re7 {[%emt 0:00:01]} 30. Nb3 {[%emt 0:00:25]} b6 {[%emt 0:02:23]} 31. Nd4 {[%emt 0:01:03]} Rc8 {[%emt 0:00:52]} 32. Kf2 {[%emt 0:03:20]} Nd8 {[%emt 0:00:15]} 33. Rb3 {[%emt 0:02:46]} Rb7 {[%emt 0:00:50]} 34. g4 {[%emt 0:00:18]} fxg4 {[%emt 0:01:50]} 35. hxg4 {[%emt 0:00:04]} b5 {[%emt 0:00:23]} 36. Ke3 {[%emt 0:01:01]} bxa4 {[%emt 0:00:12]} 37. Rxb7 {[%emt 0:00:07]} Nxb7 {[%emt 0:00:08]} 38. f5 {[%emt 0:00:13]} gxf5 {[%emt 0:01:28]} 39. gxf5 {[%emt 0:00:05]} Nc5 {[%emt 0:00:08]} 40. Kf4 {[%emt 0:01:35]} Rd8 {[%emt 0:01:32]} 41. c3 {[%emt 0:01:07]} Rd5 {[%emt 0:00:01]} 42. e6 {[%emt 0:01:13]} Nb3 {[%emt 0:01:22]} 43. Rh1 {[%emt 0:00:37]} c5 {[%emt 0:00:33]} 44. Nf3 {[%emt 0:00:56]} Nd2 {[%emt 0:00:19]} 45. Ne5 {[%emt 0:01:00]} c4 {[%emt 0:00:39]} 46. Rxh7 {[%emt 0:00:29]} 1-0

[Event "CZE-ch Amateurs 2022"]
[Site "Luhacovice"]
[Date "2022.03.16"]
[Round "6.5"]
[White "Horvath, Tomas"]
[Black "Nemec, Pavel"]
[Result "1/2-1/2"]
[ECO "B22"]
[WhiteElo "2079"]
[BlackElo "2223"]
[Annotator "RC"]
[PlyCount "31"]
[EventDate "2022.03.12"]
[EventType "swiss"]
[EventCountry "CZE"]
[SourceTitle "playchess.com"]
[Source "ChessBase"]
[SourceQuality "1"]
[TimeControl "5400+30"]

1. e4 {[%emt 0:00:14]} c5 {[%emt 0:00:07]} 2. d4 {[%emt 0:00:04]} cxd4 {[%emt 0:00:19]} 3. c3 {[%emt 0:00:06]} d5 {[%emt 0:00:42]} 4. exd5 {[%emt 0:00:12]} Qxd5 {[%emt 0:00:02]} 5. cxd4 {[%emt 0:00:09]} Nc6 {[%emt 0:01:01]} 6. Nf3 {[%emt 0:00:17]} Nf6 {[%emt 0:00:59]} 7. Nc3 {[%emt 0:00:13]} Qd8 {[%emt 0:00:13]} 8. d5 {[%emt 0:02:23]} Nb8 {[%emt 0:00:39]} 9. Bc4 {[%emt 0:01:42]} g6 {[%emt 0:03:54]} 10. O-O {[%emt 0:01:32]} Bg7 {[%emt 0:00:06]} 11. Bf4 {[%emt 0:02:21]} O-O {[%emt 0:00:38]} 12. d6 {[%emt 0:02:03]} e6 {[%emt 0:00:45]} 13. Qd2 {[%emt 0:02:52]} Bd7 {[%emt 0:02:31]} 14. Rfd1 {[%emt 0:03:21]} Nc6 {[%emt 0:02:28]} 15. Rac1 {[%emt 0:05:29]} Qa5 {[%emt 0:07:22]} 16. a3 {[%emt 0:06:30]} 1/2-1/2

[Event "CZE-ch Amateurs 2022"]
[Site "Luhacovice"]
[Date "2022.03.16"]
[Round "6.6"]
[White "Galicek, Stanislav"]
[Black "Mudrak, Josef"]
[Result "0-1"]
[ECO "A26"]
[WhiteElo "2079"]
[BlackElo "2219"]
[Annotator "RC"]
[PlyCount "66"]
[EventDate "2022.03.12"]
[EventType "swiss"]
[EventCountry "CZE"]
[SourceTitle "playchess.com"]
[Source "ChessBase"]
[SourceQuality "1"]
[TimeControl "5400+30"]

1. c4 {[%emt 0:00:11]} e5 {[%emt 0:05:23]} 2. Nc3 {[%emt 0:00:09]} Nc6 {[%emt 0:00:59]} 3. Nf3 {[%emt 0:00:41]} f5 {[%emt 0:00:24]} 4. d3 {[%emt 0:05:02]} Nf6 {[%emt 0:00:25]} 5. g3 {[%emt 0:01:15]} d6 {[%emt 0:04:46]} 6. Bg2 {[%emt 0:00:43]} g6 {[%emt 0:03:31]} 7. O-O {[%emt 0:00:51]} Bg7 {[%emt 0:00:17]} 8. Rb1 {[%emt 0:04:32]} a5 {[%emt 0:01:07]} 9. a3 {[%emt 0:01:24]} O-O {[%emt 0:07:37]} 10. b4 {[%emt 0:00:50]} axb4 {[%emt 0:02:11]} 11. axb4 {[%emt 0:00:08]} h6 {[%emt 0:01:13]} 12. b5 {[%emt 0:05:45]} Ne7 {[%emt 0:06:19]} 13. Bb2 {[%emt 0:04:22]} g5 {[%emt 0:02:52]} 14. Ra1 {[%emt 0:04:15]} Rxa1 {[%emt 0:03:17]} 15. Qxa1 {[%emt 0:01:03]} b6 {[%emt 0:00:26]} 16. Nd2 {[%emt 0:05:58]} f4 {[%emt 0:04:49]} 17. Nde4 {[%emt 0:06:06]} Ne8 {[%emt 0:05:29]} 18. Qa8 {[%emt 0:05:27]} Qd7 {[%emt 0:03:17]} 19. Nd5 {[%emt 0:14:25]} Nxd5 {[%emt 0:07:02]} 20. Qxd5+ {[%emt 0:00:31]} Kh8 {[%emt 0:03:39]} 21. h3 {[%emt 0:17:00]} g4 {[%emt 0:03:45]} 22. hxg4 {[%emt 0:00:53]} Qxg4 {[%emt 0:01:03]} 23. gxf4 {[%emt 0:02:04]} Qxe2 {[%emt 0:01:34]} 24. Bc1 {[%emt 0:03:48]} exf4 {[%emt 0:03:18]} 25. f3 {[%emt 0:00:22]} Be5 {[%emt 0:02:19]} 26. Kh2 {[%emt 0:04:05]} Ng7 {[%emt 0:12:18]} 27. Rf2 {[%emt 0:02:46]} Qd1 {[%emt 0:00:50]} 28. Bb2 {[%emt 0:00:42]} Bxb2 {[%emt 0:00:43]} 29. Rxb2 {[%emt 0:00:04]} Rf5 {[%emt 0:00:24]} 30. Nf2 {[%emt 0:01:37]} Qa1 {[%emt 0:05:03]} 31. Qd4 {[%emt 0:00:44]} Re5 {[%emt 0:01:41]} 32. Bh3 {[%emt 0:08:12]} Bxh3 {[%emt 0:01:25]} 33. Kxh3 {[%emt 0:00:08]} Re2 {[%emt 0:00:37]} 0-1

[Event "CZE-ch Amateurs 2022"]
[Site "Luhacovice"]
[Date "2022.03.16"]
[Round "6.7"]
[White "Slepov, Kyryl"]
[Black "Cagasik, Tomas"]
[Result "1-0"]
[ECO "A17"]
[WhiteElo "2064"]
[BlackElo "2177"]
[Annotator "ChessBase"]
[PlyCount "51"]
[EventDate "2022.03.12"]
[EventType "swiss"]
[EventCountry "CZE"]
[SourceTitle "playchess.com"]
[Source "ChessBase"]
[SourceQuality "1"]
[TimeControl "5400+30"]

1. c4 {[%emt 0:02:43]} b6 {[%emt 0:05:19]} 2. e4 {[%emt 0:00:53]} Bb7 {[%emt 0:00:19]} 3. Nc3 {[%emt 0:00:20]} e6 {[%emt 0:00:17]} 4. Nf3 {[%emt 0:00:40]} Bb4 {[%emt 0:00:39]} 5. d3 {[%emt 0:00:12]} Bxc3+ {[%emt 0:06:22]} 6. bxc3 {[%emt 0:01:18]} d6 {[%emt 0:01:03]} 7. g3 {[%emt 0:00:14]} Nf6 {[%emt 0:02:04]} 8. Bg2 {[%emt 0:00:09]} O-O {[%emt 0:01:06]} 9. O-O {[%emt 0:00:07]} c5 {[%emt 0:04:34]} 10. Bg5 {[%emt 0:01:47]} h6 {[%emt 0:01:41]} 11. Bd2 {[%emt 0:01:18]} Nc6 {[%emt 0:01:49]} 12. Qe2 {[%emt 0:01:45]} Qc7 {[%emt 0:02:10]} 13. Nh4 {[%emt 0:04:27]} Rad8 {[%emt 0:02:25]} 14. f4 {[%emt 0:00:53]} d5 {[%emt 0:08:44]} 15. e5 {[%emt 0:00:43]} Nh7 {[%emt 0:01:23]} 16. cxd5 {[%emt 0:01:36]} exd5 {[%emt 0:00:23]} 17. Nf5 {[%emt 0:01:18]} Ne7 {[%emt 0:03:19]} 18. Nd6 {[%emt 0:00:58]} Bc6 {[%emt 0:01:33]} 19. d4 {[%emt 0:00:27]} Qd7 {[%emt 0:05:36]} 20. Qh5 {[%emt 0:04:53]} Qc7 {[%emt 0:04:22]} 21. f5 {[%emt 0:01:38]} Rxd6 {[%emt 0:05:03]} 22. exd6 {[%emt 0:00:47]} Qxd6 {[%emt 0:00:03]} 23. Bf4 {[%emt 0:00:31]} Qd7 {[%emt 0:00:16]} 24. Bxh6 {[%emt 0:01:10]} gxh6 {[%emt 0:09:36]} 25. f6 {[%emt 0:03:08]} Nc8 {[%emt 0:06:17]} 26. Bh3 {[%emt 0:01:07]} 1-0

[Event "CZE-ch Amateurs 2022"]
[Site "Luhacovice"]
[Date "2022.03.16"]
[Round "6.8"]
[White "Bokhnak, Timofey"]
[Black "Sremanak, Slavomir"]
[Result "1/2-1/2"]
[ECO "B22"]
[WhiteElo "1978"]
[BlackElo "2187"]
[Annotator "ChessBase"]
[PlyCount "130"]
[EventDate "2022.03.12"]
[EventType "swiss"]
[EventCountry "CZE"]
[SourceTitle "playchess.com"]
[Source "ChessBase"]
[SourceQuality "1"]
[TimeControl "5400+30"]

1. e4 {[%emt 0:00:20]} c5 {[%emt 0:00:06]} 2. c3 {[%emt 0:00:05]} d6 {[%emt 0:01:20]} 3. d4 {[%emt 0:00:08]} Nd7 {[%emt 0:00:09]} 4. Nf3 {[%emt 0:00:21]} Qc7 {[%emt 0:01:53]} 5. Be3 {[%emt 0:03:02]} Ngf6 {[%emt 0:00:11]} 6. Nbd2 {[%emt 0:00:26]} g6 {[%emt 0:00:51]} 7. Bc4 {[%emt 0:00:55]} Nb6 {[%emt 0:01:29]} 8. Bb5+ {[%emt 0:07:51]} Bd7 {[%emt 0:00:13]} 9. Qb3 {[%emt 0:02:09]} Bxb5 {[%emt 0:07:48]} 10. Qxb5+ {[%emt 0:00:35]} Nfd7 {[%emt 0:05:58]} 11. a4 {[%emt 0:03:35]} a6 {[%emt 0:04:44]} 12. Qb3 {[%emt 0:00:46]} c4 {[%emt 0:02:10]} 13. Qc2 {[%emt 0:03:08]} Bg7 {[%emt 0:04:00]} 14. a5 {[%emt 0:03:09]} Nc8 {[%emt 0:00:06]} 15. O-O {[%emt 0:00:45]} O-O {[%emt 0:00:18]} 16. Ra4 {[%emt 0:03:39]} b5 {[%emt 0:00:18]} 17. axb6 {[%emt 0:00:03]} Ncxb6 {[%emt 0:00:05]} 18. Ra5 {[%emt 0:00:07]} Qb7 {[%emt 0:10:56]} 19. Rfa1 {[%emt 0:01:21]} e6 {[%emt 0:00:26]} 20. d5 {[%emt 0:10:24]} exd5 {[%emt 0:03:05]} 21. exd5 {[%emt 0:00:06]} Nxd5 {[%emt 0:09:32]} 22. Nxc4 {[%emt 0:01:01]} Nxe3 {[%emt 0:00:19]} 23. Nxe3 {[%emt 0:00:09]} Nc5 {[%emt 0:01:51]} 24. Nd2 {[%emt 0:06:53]} Rfe8 {[%emt 0:12:44]} 25. b4 {[%emt 0:07:03]} Nd7 {[%emt 0:06:16]} 26. Nd5 {[%emt 0:02:36]} Re5 {[%emt 0:01:33]} 27. Qd3 {[%emt 0:05:12]} Nc5 {[%emt 0:01:29]} 28. bxc5 {[%emt 0:02:31]} Qxd5 {[%emt 0:00:10]} 29. Qxd5 {[%emt 0:01:33]} Rxd5 {[%emt 0:00:05]} 30. Ne4 {[%emt 0:00:12]} f5 {[%emt 0:03:58]} 31. Ng3 {[%emt 0:08:35]} Bxc3 {[%emt 0:00:18]} 32. Rxa6 {[%emt 0:00:05]} Rxa6 {[%emt 0:00:18]} 33. Rxa6 {[%emt 0:00:05]} Rd1+ {[%emt 0:00:09]} 34. Nf1 {[%emt 0:00:06]} dxc5 {[%emt 0:00:05]} 35. g3 {[%emt 0:00:47]} Bd4 {[%emt 0:03:44]} 36. Kg2 {[%emt 0:00:31]} c4 {[%emt 0:00:59]} 37. Rc6 {[%emt 0:03:07]} c3 {[%emt 0:01:00]} 38. Ne3 {[%emt 0:02:17]} Rd2 {[%emt 0:00:23]} 39. Kf3 {[%emt 0:00:11]} Kf7 {[%emt 0:03:26]} 40. h4 {[%emt 0:04:14]} Ke7 {[%emt 0:01:48]} 41. h5 {[%emt 0:00:52]} Kd7 {[%emt 0:00:37]} 42. Rc4 {[%emt 0:00:14]} gxh5 {[%emt 0:01:52]} 43. Nxf5 {[%emt 0:02:01]} Rxf2+ {[%emt 0:00:12]} 44. Ke4 {[%emt 0:00:03]} Bf6 {[%emt 0:00:21]} 45. Ne3 {[%emt 0:02:25]} Kd6 {[%emt 0:04:33]} 46. Nf5+ {[%emt 0:00:19]} Ke6 {[%emt 0:00:09]} 47. Ne3 {[%emt 0:04:35]} Rd2 {[%emt 0:01:28]} 48. Rc6+ {[%emt 0:01:22]} Kf7 {[%emt 0:00:28]} 49. Kf5 {[%emt 0:00:02]} Rf2+ {[%emt 0:00:51]} 50. Ke4 {[%emt 0:00:01]} Kg6 {[%emt 0:02:31]} 51. Nd5 {[%emt 0:00:24]} Kg5 {[%emt 0:00:25]} 52. Ke3 {[%emt 0:04:17]} Rf5 {[%emt 0:00:29]} 53. Nxf6 {[%emt 0:00:05]} Rxf6 {[%emt 0:00:10]} 54. Rxc3 {[%emt 0:00:05]} Kg4 {[%emt 0:00:08]} 55. Ke2 {[%emt 0:00:03]} h6 {[%emt 0:00:54]} 56. Rd3 {[%emt 0:00:13]} Rf5 {[%emt 0:00:11]} 57. Rb3 {[%emt 0:00:41]} Kh3 {[%emt 0:00:15]} 58. Rf3 {[%emt 0:00:43]} Ra5 {[%emt 0:00:32]} 59. Kf2 {[%emt 0:00:36]} Kh2 {[%emt 0:01:41]} 60. Rf6 {[%emt 0:01:05]} Rg5 {[%emt 0:01:28]} 61. Rf3 {[%emt 0:00:42]} Rb5 {[%emt 0:00:38]} 62. Rf6 {[%emt 0:00:09]} Rb2+ {[%emt 0:00:19]} 63. Kf3 {[%emt 0:00:14]} Rb3+ {[%emt 0:00:11]} 64. Kf4 {[%emt 0:00:21]} Rb4+ {[%emt 0:01:33]} 65. Kf3 {[%emt 0:00:08]} Rb3+ {[%emt 0:00:30]} 1/2-1/2

[Event "CZE-ch Amateurs 2022"]
[Site "Luhacovice"]
[Date "2022.03.16"]
[Round "6.9"]
[White "Lorenc, Tomas"]
[Black "Taus, Martin"]
[Result "0-1"]
[ECO "A07"]
[WhiteElo "2183"]
[BlackElo "2017"]
[Annotator "ChessBase"]
[PlyCount "94"]
[EventDate "2022.03.12"]
[EventType "swiss"]
[EventCountry "CZE"]
[SourceTitle "playchess.com"]
[Source "ChessBase"]
[SourceQuality "1"]
[TimeControl "5400+30"]

1. c4 {[%emt 0:00:19]} Nc6 {[%emt 0:00:06]} 2. g3 {[%emt 0:01:23]} d5 {[%emt 0:00:14]} 3. Bg2 {[%emt 0:01:46]} d4 {[%emt 0:00:35]} 4. d3 {[%emt 0:03:18]} e5 {[%emt 0:00:29]} 5. Nf3 {[%emt 0:01:37]} Nf6 {[%emt 0:00:10]} 6. Nbd2 {[%emt 0:01:29]} Be7 {[%emt 0:01:42]} 7. O-O {[%emt 0:00:10]} O-O {[%emt 0:02:16]} 8. Rb1 {[%emt 0:00:19]} a5 {[%emt 0:04:00]} 9. a3 {[%emt 0:00:12]} a4 {[%emt 0:01:00]} 10. b4 {[%emt 0:00:47]} axb3 {[%emt 0:00:09]} 11. Qxb3 {[%emt 0:00:08]} Re8 {[%emt 0:09:27]} 12. Ne1 {[%emt 0:05:34]} Ra6 {[%emt 0:05:14]} 13. Nc2 {[%emt 0:02:50]} Rb6 {[%emt 0:10:43]} 14. Qa2 {[%emt 0:00:22]} Ra6 {[%emt 0:04:21]} 15. Rb5 {[%emt 0:10:06]} Bf8 {[%emt 0:00:23]} 16. Ne4 {[%emt 0:14:00]} Nxe4 {[%emt 0:09:32]} 17. Bxe4 {[%emt 0:00:07]} f5 {[%emt 0:01:16]} 18. Bd5+ {[%emt 0:07:34]} Kh8 {[%emt 0:02:02]} 19. Bf7 {[%emt 0:00:57]} f4 {[%emt 0:06:50]} 20. Ne1 {[%emt 0:05:28]} Re7 {[%emt 0:06:24]} 21. Bd5 {[%emt 0:02:09]} g5 {[%emt 0:04:03]} 22. e3 {[%emt 0:01:53]} Bh3 {[%emt 0:14:37]} 23. Ng2 {[%emt 0:03:31]} Qc8 {[%emt 0:06:53]} 24. Qb2 {[%emt 0:08:38]} Nd8 {[%emt 0:03:39]} 25. Be4 {[%emt 0:05:21]} Rf7 {[%emt 0:03:10]} 26. Rxe5 {[%emt 0:06:53]} f3 {[%emt 0:01:46]} 27. Qxd4 {[%emt 0:02:05]} Rd6 {[%emt 0:01:44]} 28. Qc3 {[%emt 0:02:27]} Ne6 {[%emt 0:00:22]} 29. Ne1 {[%emt 0:08:10]} Bg7 {[%emt 0:01:03]} 30. Nxf3 {[%emt 0:00:17]} Bxf1 {[%emt 0:00:21]} 31. Kxf1 {[%emt 0:00:01]} Qf8 {[%emt 0:00:45]} 32. Bb2 {[%emt 0:02:22]} g4 {[%emt 0:00:31]} 33. Qc1 {[%emt 0:02:30]} gxf3 {[%emt 0:00:20]} 34. Rh5 {[%emt 0:00:14]} Bxb2 {[%emt 0:00:38]} 35. Qxb2+ {[%emt 0:00:02]} Kg8 {[%emt 0:00:04]} 36. c5 {[%emt 0:00:51]} Ra6 {[%emt 0:00:28]} 37. Bxb7 {[%emt 0:00:34]} Ra5 {[%emt 0:00:36]} 38. Bd5 {[%emt 0:00:22]} Rxc5 {[%emt 0:00:36]} 39. Re5 {[%emt 0:01:24]} Qd6 {[%emt 0:00:34]} 40. Rxe6 {[%emt 0:01:18]} Qxd5 {[%emt 0:00:08]} 41. Re8+ {[%emt 0:00:34]} Rf8 {[%emt 0:00:03]} 42. Rxf8+ {[%emt 0:00:09]} Kxf8 {[%emt 0:00:02]} 43. Qh8+ {[%emt 0:00:16]} Qg8 {[%emt 0:00:57]} 44. Qf6+ {[%emt 0:00:01]} Qf7 {[%emt 0:00:06]} 45. Qd8+ {[%emt 0:00:10]} Kg7 {[%emt 0:00:05]} 46. Qd4+ {[%emt 0:00:09]} Qf6 {[%emt 0:00:18]} 47. Qd7+ {[%emt 0:00:24]} Kf8 {[%emt 0:00:21]} 0-1

[Event "CZE-ch Amateurs 2022"]
[Site "Luhacovice"]
[Date "2022.03.16"]
[Round "6.11"]
[White "Pilch, Roman"]
[Black "Stastny, Jakub"]
[Result "1-0"]
[ECO "A12"]
[WhiteElo "2136"]
[BlackElo "1945"]
[Annotator "ChessBase"]
[PlyCount "105"]
[EventDate "2022.03.12"]
[EventType "swiss"]
[EventCountry "CZE"]
[SourceTitle "playchess.com"]
[Source "ChessBase"]
[SourceQuality "1"]
[TimeControl "5400+30"]

1. Nf3 {[%emt 0:00:10]} d5 {[%emt 0:00:11]} 2. c4 {[%emt 0:00:16]} c6 {[%emt 0:00:11]} 3. b3 {[%emt 0:02:44]} Nf6 {[%emt 0:00:15]} 4. Bb2 {[%emt 0:00:10]} Bf5 {[%emt 0:00:36]} 5. g3 {[%emt 0:00:31]} e6 {[%emt 0:00:36]} 6. Bg2 {[%emt 0:00:18]} h6 {[%emt 0:00:08]} 7. O-O {[%emt 0:00:15]} Be7 {[%emt 0:00:30]} 8. d3 {[%emt 0:00:30]} O-O {[%emt 0:00:00]} 9. Nc3 {[%emt 0:05:34]} Qb6 {[%emt 0:07:32]} 10. Qc2 {[%emt 0:04:58]} a5 {[%emt 0:05:38]} 11. Na4 {[%emt 0:09:12]} Qd8 {[%emt 0:01:15]} 12. c5 {[%emt 0:00:53]} Nbd7 {[%emt 0:02:22]} 13. Rac1 {[%emt 0:06:17]} Rc8 {[%emt 0:02:55]} 14. Bd4 {[%emt 0:02:25]} b5 {[%emt 0:08:51]} 15. Nb2 {[%emt 0:01:26]} Qc7 {[%emt 0:09:49]} 16. Qd2 {[%emt 0:11:10]} Bh7 {[%emt 0:07:16]} 17. Qf4 {[%emt 0:02:37]} Qa7 {[%emt 0:04:45]} 18. Ne5 {[%emt 0:06:26]} Rfe8 {[%emt 0:06:12]} 19. Qe3 {[%emt 0:03:43]} Nxe5 {[%emt 0:00:50]} 20. Qxe5 {[%emt 0:00:27]} Bf8 {[%emt 0:00:36]} 21. Be3 {[%emt 0:09:05]} Nd7 {[%emt 0:04:19]} 22. Qc3 {[%emt 0:00:50]} e5 {[%emt 0:05:07]} 23. d4 {[%emt 0:01:07]} e4 {[%emt 0:00:01]} 24. Qd2 {[%emt 0:01:39]} Bf5 {[%emt 0:02:05]} 25. Rce1 {[%emt 0:01:43]} Nf6 {[%emt 0:00:46]} 26. f3 {[%emt 0:00:57]} Qd7 {[%emt 0:01:27]} 27. a3 {[%emt 0:00:53]} Bh3 {[%emt 0:02:17]} 28. Nd1 {[%emt 0:03:44]} Bxg2 {[%emt 0:01:38]} 29. Kxg2 {[%emt 0:00:03]} Kh7 {[%emt 0:03:59]} 30. Nf2 {[%emt 0:00:48]} g6 {[%emt 0:00:28]} 31. f4 {[%emt 0:06:14]} Bg7 {[%emt 0:01:29]} 32. Qxa5 {[%emt 0:02:02]} Ra8 {[%emt 0:00:00]} 33. Qb4 {[%emt 0:00:11]} Ng4 {[%emt 0:01:22]} 34. Nxg4 {[%emt 0:00:19]} Qxg4 {[%emt 0:00:01]} 35. h3 {[%emt 0:01:18]} Qd7 {[%emt 0:00:35]} 36. Ra1 {[%emt 0:00:34]} f5 {[%emt 0:02:35]} 37. Qe1 {[%emt 0:02:19]} Bf6 {[%emt 0:00:27]} 38. Qf2 {[%emt 0:00:17]} Qe6 {[%emt 0:02:45]} 39. Ra2 {[%emt 0:00:59]} Ra7 {[%emt 0:00:21]} 40. Rfa1 {[%emt 0:00:11]} g5 {[%emt 0:00:17]} 41. a4 {[%emt 0:01:58]} b4 {[%emt 0:03:21]} 42. Kh2 {[%emt 0:01:11]} gxf4 {[%emt 0:01:35]} 43. Qxf4 {[%emt 0:01:14]} Bg5 {[%emt 0:00:01]} 44. Qf2 {[%emt 0:00:13]} Rg8 {[%emt 0:02:51]} 45. Rg1 {[%emt 0:00:25]} Rag7 {[%emt 0:03:06]} 46. Raa1 {[%emt 0:00:39]} h5 {[%emt 0:03:06]} 47. Bxg5 {[%emt 0:00:51]} Rxg5 {[%emt 0:00:01]} 48. Qf4 {[%emt 0:00:24]} R8g6 {[%emt 0:03:00]} 49. e3 {[%emt 0:00:35]} Qf6 {[%emt 0:02:42]} 50. Raf1 {[%emt 0:00:53]} h4 {[%emt 0:00:52]} 51. gxh4 {[%emt 0:00:53]} Rxg1 {[%emt 0:01:16]} 52. Rxg1 {[%emt 0:00:07]} Rh6 {[%emt 0:00:04]} 53. Qc7+ {[%emt 0:00:39]} 1-0

[Event "CZE-ch Amateurs 2022"]
[Site "Luhacovice"]
[Date "2022.03.16"]
[Round "6.12"]
[White "Zaza, Martin"]
[Black "Toman, Jan"]
[Result "0-1"]
[ECO "C00"]
[WhiteElo "1822"]
[BlackElo "2127"]
[Annotator "ChessBase"]
[PlyCount "112"]
[EventDate "2022.03.12"]
[EventType "swiss"]
[EventCountry "CZE"]
[SourceTitle "playchess.com"]
[Source "ChessBase"]
[SourceQuality "1"]
[TimeControl "5400+30"]

1. e4 {[%emt 0:00:29]} c5 {[%emt 0:00:07]} 2. Nf3 {[%emt 0:00:13]} e6 {[%emt 0:00:06]} 3. d3 {[%emt 0:00:16]} Nc6 {[%emt 0:00:57]} 4. g3 {[%emt 0:00:18]} d5 {[%emt 0:00:45]} 5. Nbd2 {[%emt 0:00:13]} Nf6 {[%emt 0:00:27]} 6. Bg2 {[%emt 0:00:13]} Be7 {[%emt 0:00:20]} 7. O-O {[%emt 0:00:20]} b5 {[%emt 0:01:22]} 8. Re1 {[%emt 0:02:10]} O-O {[%emt 0:00:16]} 9. Qe2 {[%emt 0:02:20]} Qc7 {[%emt 0:02:07]} 10. e5 {[%emt 0:00:46]} Nd7 {[%emt 0:00:11]} 11. Nf1 {[%emt 0:05:49]} Nd4 {[%emt 0:00:58]} 12. Nxd4 {[%emt 0:00:09]} cxd4 {[%emt 0:00:05]} 13. Bf4 {[%emt 0:00:50]} Bb7 {[%emt 0:00:51]} 14. h4 {[%emt 0:01:20]} Rfc8 {[%emt 0:00:14]} 15. Rec1 {[%emt 0:00:39]} a5 {[%emt 0:05:22]} 16. Nh2 {[%emt 0:04:22]} Qd8 {[%emt 0:06:33]} 17. Nf3 {[%emt 0:06:10]} Qb6 {[%emt 0:01:41]} 18. Ng5 {[%emt 0:15:31]} h6 {[%emt 0:00:41]} 19. Nf3 {[%emt 0:00:27]} a4 {[%emt 0:03:51]} 20. c3 {[%emt 0:01:59]} dxc3 {[%emt 0:06:17]} 21. bxc3 {[%emt 0:00:04]} Ba6 {[%emt 0:01:55]} 22. Rab1 {[%emt 0:11:52]} Qa5 {[%emt 0:10:44]} 23. Bd2 {[%emt 0:04:20]} Qd8 {[%emt 0:00:33]} 24. Nd4 {[%emt 0:04:02]} Rab8 {[%emt 0:04:12]} 25. c4 {[%emt 0:04:31]} bxc4 {[%emt 0:01:21]} 26. Rxb8 {[%emt 0:00:11]} Nxb8 {[%emt 0:00:48]} 27. Qg4 {[%emt 0:01:03]} Kh8 {[%emt 0:02:46]} 28. Qh5 {[%emt 0:05:03]} Qf8 {[%emt 0:02:00]} 29. dxc4 {[%emt 0:06:44]} Bxc4 {[%emt 0:00:49]} 30. Bf1 {[%emt 0:02:17]} Ba3 {[%emt 0:15:18]} 31. Rb1 {[%emt 0:06:18]} Nd7 {[%emt 0:02:22]} 32. Rb7 {[%emt 0:01:51]} g6 {[%emt 0:00:34]} 33. Qd1 {[%emt 0:02:45]} Nc5 {[%emt 0:05:41]} 34. Ra7 {[%emt 0:00:55]} Bxf1 {[%emt 0:02:56]} 35. Kxf1 {[%emt 0:00:27]} Ne4 {[%emt 0:02:31]} 36. Be3 {[%emt 0:00:37]} Bc5 {[%emt 0:00:54]} 37. Rb7 {[%emt 0:01:59]} Bxd4 {[%emt 0:09:36]} 38. Qxd4 {[%emt 0:00:25]} a3 {[%emt 0:02:08]} 39. Qa7 {[%emt 0:01:23]} Kg8 {[%emt 0:00:29]} 40. Kg2 {[%emt 0:02:53]} Nc3 {[%emt 0:02:29]} 41. Rb3 {[%emt 0:00:49]} Nxa2 {[%emt 0:05:00]} 42. Qxa3 {[%emt 0:02:07]} Qxa3 {[%emt 0:01:06]} 43. Rxa3 {[%emt 0:00:04]} Nb4 {[%emt 0:01:09]} 44. Bxh6 {[%emt 0:00:51]} Nc6 {[%emt 0:00:37]} 45. Rc3 {[%emt 0:01:45]} Ne7 {[%emt 0:00:03]} 46. Rxc8+ {[%emt 0:02:01]} Nxc8 {[%emt 0:00:01]} 47. Be3 {[%emt 0:00:22]} Ne7 {[%emt 0:00:45]} 48. f4 {[%emt 0:00:44]} Nc6 {[%emt 0:00:46]} 49. Bc5 {[%emt 0:00:20]} Kg7 {[%emt 0:00:22]} 50. g4 {[%emt 0:00:51]} Na5 {[%emt 0:00:02]} 51. h5 {[%emt 0:00:20]} gxh5 {[%emt 0:00:11]} 52. gxh5 {[%emt 0:00:06]} Kh6 {[%emt 0:00:05]} 53. Kg3 {[%emt 0:00:27]} Kxh5 {[%emt 0:00:03]} 54. f5 {[%emt 0:01:04]} Kg5 {[%emt 0:00:16]} 55. fxe6 {[%emt 0:00:05]} fxe6 {[%emt 0:00:06]} 56. Bd6 {[%emt 0:01:36]} Kf5 {[%emt 0:00:10]} 0-1